bitfinex/quotes_ETHUSD_20250426
["timestamp","ask_amount","ask_price","bid_price","bid_amount"]
[1745689018531,5.5292189,1808.6,1808.3,0.1974304]
[1745689019031,5.52975005,1808.4,1808.3,0.1974304]
[1745689019518,5.52975005,1808.4,1808.3,0.18160588]
[1745689019693,6.36205005,1808.4,1808.0,6.3524269]
[1745689020015,4.618,1808.3,1808.1,0.18160588]
[1745689020219,10.1481874,1808.3,1808.1,0.18160588]
[1745689020376,4.618,1808.3,1808.1,0.18160588]
[1745689020731,4.618,1808.3,1808.2,0.18160588]
[1745689020894,4.618,1808.3,1808.0,5.53096429]
[1745689021213,4.618,1808.3,1808.1,0.18160588]
[1745689021826,4.618,1808.3,1808.1,5.71226051]
[1745689022001,4.618,1808.3,1808.1,6.18404068]
[1745689022199,4.618,1808.3,1808.2,0.18366707]
[1745689025092,4.618,1808.3,1808.0,6.35235263]
[1745689025284,4.618,1808.3,1808.1,0.18366707]
[1745689025712,10.14808579,1808.3,1807.9,5.53112097]
[1745689025895,4.618,1808.3,1808.0,0.18590478]
[1745689026618,4.618,1808.3,1808.0,5.71671222]
[1745689028031,0.8046,1808.2,1808.0,0.18590478]
[1745689028436,0.8046,1808.2,1807.9,5.5311479]
[1745689028925,0.8046,1808.2,1808.0,0.18369872]
[1745689029315,4.618,1808.3,1808.0,0.18369872]
[1745689029512,4.618,1808.3,1808.1,5.53061908]
[1745689030039,4.618,1808.3,1808.2,0.18369872]
[1745689035943,5.52958523,1808.5,1808.2,0.18369872]
[1745689036254,4.618,1808.3,1808.2,0.18369872]
[1745689036548,5.52958523,1808.5,1808.2,0.18369872]
[1745689036749,4.618,1808.3,1808.2,0.18369872]
[1745689041329,6.9162,1808.6,1808.3,6.36139775]
[1745689041529,4.618,1808.5,1808.4,5.71332619]
[1745689041728,4.618,1808.5,1808.4,0.18363979]
[1745689041942,4.618,1808.5,1808.3,6.36121846]
[1745689042142,4.618,1808.5,1808.4,0.18363979]
[1745689042342,4.618,1808.5,1808.3,6.36121846]
[1745689042571,4.618,1808.5,1808.4,0.18363979]
[1745689042965,5.4246,1808.5,1808.1,6.36183139]
[1745689043159,5.4246,1808.5,1808.2,0.18363979]
[1745689043547,5.4246,1808.5,1808.2,5.71397111]
[1745689043842,5.4246,1808.5,1808.2,0.18363979]
[1745689044755,5.3746,1808.5,1808.2,0.18363979]
[1745689045563,5.3746,1808.5,1808.2,5.71390246]
[1745689051885,5.3746,1808.5,1808.2,0.18363979]
[1745689052185,5.53048585,1808.2,1807.8,5.53147247]
[1745689052394,4.618,1808.1,1807.8,5.53147247]
[1745689052589,4.618,1808.1,1807.9,0.18215744]
[1745689053898,4.618,1808.1,1807.9,5.71327065]
[1745689055795,4.618,1808.1,1808.0,5.53097345]
[1745689055962,4.618,1808.1,1808.0,6.30227345]
[1745689056298,4.618,1808.1,1808.0,7.61015121]
[1745689059920,4.618,1808.1,1808.0,6.83885121]
[1745689063133,4.618,1808.1,1808.0,0.18345335]
[1745689063803,0.8135,1807.8,1807.3,0.28900403]
[1745689064036,0.7593,1807.5,1807.3,0.28900403]
[1745689064343,0.7593,1807.5,1806.8,6.34464688]
[1745689064344,10.15092904,1807.4,1806.8,6.34464688]
[1745689064491,10.15092904,1807.4,1807.0,5.53401098]
[1745689065102,4.618,1807.4,1807.0,5.53401098]
[1745689065438,0.7593,1807.3,1806.9,5.53413234]
[1745689065628,5.53348603,1807.2,1806.8,5.53449634]
[1745689066157,5.53373124,1807.1,1806.7,5.534895]
[1745689066356,4.619,1807.0,1806.7,5.534895]
[1745689066804,4.619,1807.0,1806.7,11.06968751]
[1745689067004,4.619,1807.0,1806.8,5.53464321]
[1745689067252,4.619,1807.0,1806.7,5.53483256]
[1745689067763,0.7593,1806.9,1806.6,5.53505022]
[1745689068054,0.7593,1806.9,1806.6,6.38855524]
[1745689068447,0.7593,1806.9,1806.7,5.53492566]
[1745689068813,0.7593,1806.9,1806.6,0.85350502]
[1745689068814,0.806,1807.1,1806.8,5.53442754]
[1745689069139,4.619,1807.0,1806.8,5.53461802]
[1745689069438,4.619,1807.0,1806.7,5.53479672]
[1745689069937,4.619,1807.0,1806.7,5.53472905]
[1745689070106,4.619,1807.0,1806.7,5.53471655]
[1745689070308,4.619,1807.0,1806.7,11.06942675]
[1745689070641,4.619,1807.0,1806.8,11.06905023]
[1745689070810,4.619,1807.0,1806.9,5.53434058]
[1745689071135,4.619,1807.0,1806.7,1.19229318]
[1745689071438,4.619,1807.0,1806.7,5.53469439]
[1745689072140,4.619,1807.0,1806.8,5.53449585]
[1745689076465,4.619,1807.0,1806.9,5.53434058]
[1745689077355,4.619,1807.0,1806.7,5.53493011]
[1745689077743,4.619,1807.0,1806.7,5.53473721]
[1745689077950,4.619,1807.0,1806.8,5.53449146]
[1745689078474,4.619,1807.0,1806.9,0.15421182]
[1745689078881,4.619,1807.0,1806.7,6.08818166]
[1745689079048,4.619,1807.0,1806.9,0.16086315]
[1745689079249,4.619,1807.0,1806.7,6.08818166]
[1745689079492,4.619,1807.0,1806.9,0.16086315]
[1745689079782,4.619,1807.0,1806.7,6.08818026]
[1745689079951,4.619,1807.0,1806.9,0.16086315]
[1745689080157,4.619,1807.0,1806.8,5.53464307]
[1745689080363,4.619,1807.0,1806.9,0.16086315]
[1745689080694,4.619,1807.0,1806.8,5.53464307]
[1745689080992,4.619,1807.0,1806.9,0.16086315]
[1745689081155,4.619,1807.0,1806.8,5.53464307]
[1745689081359,4.619,1807.0,1806.9,0.16086315]
[1745689082359,4.619,1807.0,1806.7,6.08826047]
[1745689082782,4.619,1807.0,1806.8,0.16086315]
[1745689083391,10.9306792,1807.0,1806.8,0.16086315]
[1745689083592,5.53434058,1806.9,1806.8,0.16086315]
[1745689083768,5.53467971,1806.8,1806.4,6.34560996]
[1745689084092,5.53495433,1806.7,1806.4,0.81]
[1745689084298,4.621,1806.6,1806.3,5.53616737]
[1745689084522,5.4508,1806.6,1806.3,5.53616737]
[1745689086212,4.621,1806.6,1806.4,5.53576108]
[1745689086705,4.621,1806.6,1806.3,5.53601163]
[1745689087006,4.621,1806.6,1806.2,6.2952245]
[1745689087207,10.15643981,1806.6,1806.2,5.5363245]
[1745689087384,0.8298,1806.5,1806.1,5.63664]
[1745689087819,0.8298,1806.5,1806.1,11.17319935]
[1745689088003,0.8298,1806.5,1806.2,5.53642448]
[1745689088201,0.8298,1806.5,1806.1,0.1]
[1745689088418,5.5358847,1806.4,1806.1,0.1]
[1745689088806,6.36554593,1806.5,1806.1,5.63664143]
[1745689089430,0.8298,1806.5,1806.1,5.63664143]
[1745689089797,0.8298,1806.5,1806.1,5.63662395]
[1745689090135,0.8298,1806.5,1806.2,5.53630907]
[1745689091131,0.8298,1806.5,1806.1,5.63662329]
[1745689091295,4.621,1806.4,1806.1,5.63662329]
[1745689091501,4.621,1806.4,1806.1,0.1]
[1745689091825,4.621,1806.4,1806.1,5.63673643]
[1745689092828,4.621,1806.4,1806.2,5.53647965]
[1745689093125,4.621,1806.4,1806.1,0.8839]
[1745689093328,4.621,1806.4,1806.1,5.63667696]
[1745689093530,4.621,1806.4,1806.2,0.16451607]
[1745689094031,4.621,1806.4,1806.3,0.16451607]
[1745689094325,4.621,1806.4,1806.1,5.63667696]
[1745689094533,4.621,1806.4,1806.3,0.16451607]
[1745689094823,4.621,1806.4,1806.1,5.63659773]
[1745689095029,4.621,1806.4,1806.3,0.16451607]
[1745689095638,4.621,1806.4,1806.1,0.1]
[1745689095833,4.621,1806.4,1806.3,0.16451607]
[1745689096334,5.71963918,1806.4,1806.1,0.1]
[1745689096640,5.53619491,1806.3,1806.1,0.1]
[1745689096807,5.53619491,1806.3,1806.2,0.16451607]
[1745689097135,5.53619491,1806.3,1806.1,0.1]
[1745689097335,5.53619491,1806.3,1806.2,0.16451607]
[1745689097532,6.85924173,1806.3,1806.2,0.16451607]
[1745689097706,6.85924173,1806.3,1806.1,0.1]
[1745689097907,6.85924173,1806.3,1806.2,0.16451607]
[1745689098132,6.85924173,1806.3,1806.1,0.1]
[1745689098314,6.85924173,1806.3,1806.2,0.16451607]
[1745689098499,6.85924173,1806.3,1806.1,0.1]
[1745689098707,6.85924173,1806.3,1806.2,0.16451607]
[1745689099920,6.85924173,1806.3,1806.1,0.1]
[1745689100108,6.85924173,1806.3,1806.2,0.17806243]
[1745689100436,6.85924173,1806.3,1806.1,0.1]
[1745689100606,5.53619491,1806.3,1806.1,0.1]
[1745689100807,5.53619491,1806.3,1806.2,0.17800348]
[1745689101007,5.442,1806.4,1806.2,0.17800348]
[1745689101211,5.442,1806.4,1806.1,0.9252]
[1745689101432,10.97791363,1806.4,1806.3,0.17794452]
[1745689101642,10.97791363,1806.4,1806.1,0.9252]
[1745689102247,10.97791363,1806.4,1806.2,0.17794452]
[1745689102443,5.442,1806.4,1806.1,0.1]
[1745689102619,5.442,1806.4,1806.3,0.17794452]
[1745689102860,6.53977615,1806.4,1806.1,0.1]
[1745689103062,5.442,1806.4,1806.3,0.17794452]
[1745689103262,5.442,1806.4,1806.1,0.1]
[1745689103459,23.40581819,1806.7,1806.4,5.53585453]
[1745689103460,0.8,1806.6,1806.4,5.53585453]
[1745689103658,4.622,1806.5,1806.4,6.34195453]
[1745689103887,4.622,1806.5,1806.4,7.52975362]
[1745689106294,4.622,1806.5,1806.4,6.34195453]
[1745689107302,16.621,1806.7,1806.6,5.5352596]
[1745689107477,4.622,1806.9,1806.8,5.53449869]
[1745689108160,4.622,1806.9,1806.7,6.30727278]
[1745689108483,4.622,1806.9,1806.8,0.17552789]
[1745689108890,4.622,1806.9,1806.6,5.53512025]
[1745689109096,4.622,1806.9,1806.8,0.17552789]
[1745689109268,4.622,1806.9,1806.6,7.01942354]
[1745689109468,4.622,1806.9,1806.8,0.17552789]
[1745689109795,4.622,1806.9,1806.7,5.53495094]
[1745689110100,4.622,1806.9,1806.8,0.17552789]
[1745689114769,4.622,1806.9,1806.6,12.55445167]
[1745689114969,4.622,1806.9,1806.8,0.17157931]
[1745689115180,4.622,1806.9,1806.7,5.53494254]
[1745689115395,4.622,1806.9,1806.8,0.17157931]
[1745689115787,4.622,1806.9,1806.6,7.01936162]
[1745689115983,4.622,1806.9,1806.8,0.17157931]
[1745689116187,4.622,1806.9,1806.6,7.01936162]
[1745689116385,4.622,1806.9,1806.8,0.17157931]
[1745689116904,4.622,1806.9,1806.6,7.01936162]
[1745689117101,4.622,1806.9,1806.8,0.17157931]
[1745689117403,4.622,1806.9,1806.6,7.01936162]
[1745689117574,4.622,1806.9,1806.8,0.17157931]
[1745689117778,4.622,1806.9,1806.6,5.53525465]
[1745689117979,4.622,1806.9,1806.7,0.17157931]
[1745689118381,4.622,1806.9,1806.6,5.53525465]
[1745689118882,4.622,1806.9,1806.7,0.17157931]
[1745689119194,4.622,1806.9,1806.6,5.53512611]
[1745689119400,4.622,1806.9,1806.8,0.17157931]
[1745689119567,4.622,1806.9,1806.6,5.53512611]
[1745689119771,4.622,1806.9,1806.8,0.17157931]
[1745689119983,4.622,1806.9,1806.6,5.53512611]
[1745689120184,4.622,1806.9,1806.8,0.17157931]
[1745689120388,4.622,1806.9,1806.6,5.53512611]
[1745689120700,4.622,1806.9,1806.6,7.01942593]
[1745689120905,4.622,1806.9,1806.7,0.17157931]
[1745689121105,4.622,1806.9,1806.6,7.01942593]
[1745689121317,4.622,1806.9,1806.8,0.17157931]
[1745689121541,4.622,1806.9,1806.6,5.53512611]
[1745689122046,4.622,1806.9,1806.7,0.17157931]
[1745689122248,4.622,1806.9,1806.6,5.53512611]
[1745689122408,4.622,1806.9,1806.7,0.17157931]
[1745689122608,4.622,1806.9,1806.6,7.01942593]
[1745689122918,4.622,1806.9,1806.7,0.17169714]
[1745689123117,4.622,1806.9,1806.6,5.53512611]
[1745689123344,4.622,1806.9,1806.8,0.17169714]
[1745689123530,4.622,1806.9,1806.6,5.53512611]
[1745689123729,4.622,1806.9,1806.8,0.17169714]
[1745689123918,4.622,1806.9,1806.6,5.53512611]
[1745689124119,10.1563797,1806.9,1806.8,0.17169714]
[1745689124454,4.622,1806.9,1806.8,0.17169714]
[1745689124737,4.622,1806.9,1806.6,5.5352534]
[1745689125032,4.622,1806.9,1806.6,7.01956763]
[1745689125245,4.622,1806.9,1806.7,0.17169714]
[1745689125424,4.622,1806.9,1806.6,7.01956763]
[1745689125607,4.622,1806.9,1806.7,0.17169714]
[1745689125946,4.622,1806.9,1806.6,5.53513205]
[1745689126160,4.622,1806.9,1806.8,0.17169714]
[1745689126443,5.4329,1806.9,1806.6,5.53513205]
[1745689126605,5.4329,1806.9,1806.8,0.17169714]
[1745689127129,5.4329,1806.9,1806.5,9.30789022]
[1745689127334,10.96743022,1806.9,1806.8,0.17169714]
[1745689127534,10.96743022,1806.9,1806.5,9.30789022]
[1745689127764,10.96743022,1806.9,1806.8,0.17169714]
[1745689128053,6.34670878,1806.5,1806.1,0.1]
[1745689128350,10.15598002,1806.4,1806.2,0.1705187]
[1745689128547,10.15598002,1806.4,1806.1,0.1]
[1745689128707,10.15598002,1806.4,1806.3,0.1705187]
[1745689128908,10.15598002,1806.4,1806.1,0.1]
[1745689129128,5.53624782,1806.3,1806.1,0.1]
[1745689129737,10.15609818,1806.4,1806.1,0.1]
[1745689134239,10.15609818,1806.4,1806.1,0.8693]
[1745689134441,10.15609818,1806.4,1806.1,1.50993963]
[1745689135352,4.621,1806.3,1806.1,2.18475782]
[1745689135518,4.621,1806.3,1806.2,5.53635892]
[1745689136526,0.8076,1806.7,1806.3,5.53605077]
[1745689136734,4.621,1806.6,1806.4,5.53571994]
[1745689137475,4.621,1806.6,1806.3,6.30527793]
[1745689138065,4.621,1806.6,1806.4,5.53581643]
[1745689138235,4.621,1806.6,1806.4,6.71992268]
[1745689138446,4.621,1806.6,1806.5,0.17623496]
[1745689138918,4.621,1806.6,1806.3,6.30532321]
[1745689139122,4.621,1806.6,1806.5,0.17623496]
[1745689139353,4.621,1806.6,1806.3,6.30532321]
[1745689139555,4.621,1806.6,1806.5,0.17623496]
[1745689140155,4.621,1806.6,1806.3,6.93585553]
[1745689140775,4.621,1806.6,1806.4,0.17623496]
[1745689142224,4.621,1806.6,1806.4,5.71210193]
[1745689142420,22.15482833,1806.8,1806.4,0.17623496]
[1745689142670,4.621,1806.7,1806.4,0.17623496]
[1745689144068,5.53532054,1806.6,1806.4,0.17623496]
[1745689144265,6.30746601,1806.5,1806.1,6.46235253]
[1745689144446,6.30746601,1806.5,1806.2,0.17623496]
[1745689144645,6.30746601,1806.5,1806.1,6.46235253]
[1745689144847,5.53618597,1806.3,1806.2,0.17623496]
[1745689145078,10.15718597,1806.3,1806.1,0.1]
[1745689145256,10.15718597,1806.3,1806.2,0.17623496]
[1745689145443,10.15718597,1806.3,1806.1,0.1]
[1745689145638,10.15718597,1806.3,1806.2,0.17623496]
[1745689145839,11.17290457,1806.3,1806.2,0.17623496]
[1745689146045,5.53648543,1806.2,1806.1,0.1]
[1745689147194,11.94498221,1806.3,1806.1,0.1]
[1745689147983,5.53648543,1806.2,1806.1,0.1]
[1745689148182,11.94497422,1806.3,1806.1,0.1]
[1745689148846,5.53648543,1806.2,1806.1,0.1]
[1745689149048,11.94498145,1806.3,1806.1,0.1]
[1745689153181,5.53648543,1806.2,1806.1,0.1]
[1745689153382,11.94501944,1806.3,1806.1,0.1]
[1745689153883,5.53648543,1806.2,1806.1,0.1]
[1745689154691,6.94245283,1806.2,1806.1,0.1]
[1745689155487,5.53648543,1806.2,1806.1,0.1]
[1745689160323,10.92927582,1806.3,1806.1,0.1]
[1745689161316,5.53648543,1806.2,1806.1,0.1]
[1745689166654,12.45448543,1806.2,1806.1,0.1]
[1745689166815,15.45448543,1806.2,1806.1,0.1]
[1745689170250,0.7901,1806.0,1805.3,0.7715]
[1745689170449,5.5383825,1805.6,1805.3,0.7715]
[1745689170654,4.622,1805.5,1805.4,0.167889]
[1745689171006,4.622,1805.5,1805.3,0.7715]
[1745689171207,4.622,1805.5,1805.4,0.16806573]
[1745689171659,4.622,1805.5,1805.3,0.7715]
[1745689171844,4.622,1805.5,1805.4,0.16824247]
[1745689172176,4.622,1805.5,1805.3,0.7715]
[1745689172379,4.622,1805.5,1805.4,0.16824247]
[1745689172666,4.622,1805.5,1805.3,0.7715]
[1745689172827,4.622,1805.5,1805.4,0.16824247]
[1745689173155,4.622,1805.5,1805.3,0.7715]
[1745689173378,4.622,1805.5,1805.4,0.16824247]
[1745689173538,4.622,1805.5,1805.3,0.7715]
[1745689173738,4.622,1805.5,1805.4,0.16824247]
[1745689173941,4.622,1805.5,1805.3,0.7715]
[1745689174158,4.622,1805.5,1805.4,0.16824247]
[1745689174363,4.622,1805.5,1805.3,0.7715]
[1745689174673,4.622,1805.5,1805.4,0.16824247]
[1745689175180,4.622,1805.5,1805.4,0.16853705]
[1745689175330,4.622,1805.5,1805.3,0.7715]
[1745689175531,4.622,1805.5,1805.4,0.16853705]
[1745689175731,4.622,1805.5,1805.3,0.7715]
[1745689175930,4.622,1805.5,1805.4,0.16853705]
[1745689176173,4.622,1805.5,1805.3,0.7715]
[1745689176472,4.622,1805.5,1805.4,0.16853705]
[1745689176681,4.622,1805.5,1805.4,6.47987578]
[1745689176857,4.622,1805.5,1805.4,6.31133873]
[1745689177158,4.622,1805.5,1805.4,6.48293861]
[1745689183071,4.61766318,1805.5,1805.4,6.48293861]
[1745689183458,4.61766318,1805.5,1805.4,7.68515618]
[1745689190592,0.67481819,1806.3,1805.4,5.14621745]
[1745689190803,6.34159364,1806.9,1806.3,6.35867872]
[1745689190942,4.622,1806.8,1806.5,5.53543733]
[1745689191648,4.622,1806.8,1806.6,0.16765332]
[1745689193070,5.16491,1806.8,1806.6,0.16765332]
[1745689193385,5.16491,1806.8,1806.4,6.82336454]
[1745689193678,5.16491,1806.8,1806.7,0.16765332]
[1745689193869,5.16491,1806.8,1806.4,11.0713214]
[1745689194042,5.16491,1806.8,1806.7,0.16765332]
[1745689194243,5.16491,1806.8,1806.5,5.53555791]
[1745689194482,5.16491,1806.8,1806.7,0.16765332]
[1745689194656,5.16491,1806.8,1806.4,5.53573162]
[1745689194854,4.622,1806.8,1806.7,0.16765332]
[1745689195069,4.622,1806.8,1806.4,5.53573162]
[1745689195384,4.622,1806.8,1806.4,5.53561233]
[1745689195585,4.622,1806.8,1806.5,0.16765332]
[1745689197188,4.622,1806.8,1806.5,5.70319926]
[1745689198786,4.622,1806.8,1806.5,11.23852697]
[1745689198971,4.622,1806.8,1806.5,5.70298103]
[1745689199689,4.622,1806.8,1806.5,0.16765332]
[1745689201088,10.15687916,1806.8,1806.5,0.16765332]
[1745689203309,4.622,1806.8,1806.5,0.16765332]
[1745689203473,4.622,1806.8,1806.5,6.27351744]
[1745689205019,5.53415751,1807.0,1806.5,6.27337957]
[1745689205177,4.62,1806.9,1806.6,6.29899713]
[1745689205510,4.62,1806.9,1806.7,0.1578222]
[1745689205720,4.62,1806.9,1806.6,6.29899713]
[1745689205900,4.62,1806.9,1806.7,0.1578222]
[1745689206100,4.62,1806.9,1806.6,2.00437234]
[1745689206613,4.62,1806.9,1806.7,0.1578222]
[1745689206917,4.62,1806.9,1806.6,2.00437234]
[1745689207214,4.62,1806.9,1806.7,5.69273741]
[1745689207416,4.62,1806.9,1806.8,0.56927374]
[1745689207801,4.62,1806.9,1806.6,8.21556574]
[1745689207802,4.62,1806.9,1806.6,8.21551654]
[1745689208014,5.53407443,1807.0,1806.8,0.1578222]
[1745689208223,4.62,1806.9,1806.6,7.53944047]
[1745689209940,4.62,1806.9,1806.7,5.53494078]
[1745689210129,4.62,1806.9,1806.7,5.5347606]
[1745689210303,4.62,1806.9,1806.7,6.3562815]
[1745689212320,4.62,1806.9,1806.7,0.8215209]
[1745689212643,4.62,1806.9,1806.7,6.35644883]
[1745689213649,4.62,1806.9,1806.8,0.15723382]
[1745689214912,4.62,1806.9,1806.8,5.6918807]
[1745689215255,4.62,1806.9,1806.8,0.15723382]
[1745689215873,4.62,1806.9,1806.8,5.6918807]
[1745689216039,6.29195578,1807.3,1806.8,6.89649251]
[1745689216240,4.619,1807.2,1806.9,6.3497473]
[1745689216653,4.619,1807.2,1807.0,0.15623357]
[1745689217885,10.15245598,1807.2,1807.0,0.15623357]
[1745689218482,4.619,1807.2,1807.0,0.15623357]
[1745689221400,4.619,1807.2,1807.1,0.51628013]
[1745689222106,4.619,1807.2,1807.1,0.6725137]
[1745689222908,4.619,1807.2,1807.1,0.15623357]
[1745689223200,4.619,1807.2,1806.9,6.34992907]
[1745689223405,4.619,1807.2,1807.1,0.15623357]
[1745689223606,4.619,1807.2,1806.9,6.34992907]
[1745689223899,4.619,1807.2,1807.1,0.15623357]
[1745689224072,4.619,1807.2,1807.0,0.51630785]
[1745689224271,4.619,1807.2,1807.1,0.15623357]
[1745689225371,4.619,1807.2,1806.9,6.34990489]
[1745689225703,10.15242859,1807.2,1807.1,0.15623357]
[1745689225906,10.15242859,1807.2,1807.0,0.15552766]
[1745689226208,10.15242859,1807.2,1807.1,0.15552766]
[1745689226507,4.619,1807.2,1807.1,0.15552766]
[1745689226713,4.619,1807.2,1806.9,6.34993214]
[1745689226916,4.619,1807.2,1807.1,0.15552766]
[1745689227080,4.619,1807.2,1806.9,6.34993214]
[1745689227280,4.619,1807.2,1807.1,0.15552766]
[1745689227476,4.619,1807.2,1806.9,6.34993214]
[1745689227676,4.619,1807.2,1807.1,0.67192163]
[1745689231621,4.619,1807.2,1807.1,0.78981953]
[1745689232914,4.619,1807.2,1807.1,0.27342556]
[1745689233223,4.619,1807.2,1806.9,6.34993214]
[1745689233391,4.619,1807.2,1807.1,0.272249]
[1745689233592,4.619,1807.2,1806.9,6.34993214]
[1745689233797,4.619,1807.2,1807.1,0.272249]
[1745689234209,4.619,1807.2,1806.9,6.34993214]
[1745689234419,4.619,1807.2,1807.1,0.272249]
[1745689234630,4.619,1807.2,1806.9,6.34993214]
[1745689234834,4.619,1807.2,1807.1,0.272249]
[1745689235041,4.619,1807.2,1806.8,5.53441706]
[1745689235042,11.24352479,1807.2,1806.8,6.28501359]
[1745689235535,11.24352479,1807.2,1806.3,6.28639092]
[1745689235536,1.28723336,1806.9,1806.3,6.28639092]
[1745689235741,0.7666,1807.0,1806.3,0.7504]
[1745689235742,0.7666,1806.7,1806.3,0.7504]
[1745689236037,5.53537634,1806.6,1806.3,0.7504]
[1745689236900,6.3017068,1806.7,1806.3,0.7504]
[1745689237710,6.3017068,1806.7,1806.3,6.28650966]
[1745689238597,10.15375142,1806.8,1806.3,7.46870323]
[1745689238897,10.15375142,1806.8,1806.4,5.53575363]
[1745689239230,10.15375142,1806.8,1806.3,7.46870323]
[1745689239735,5.53497576,1806.7,1806.3,7.46870323]
[1745689240441,10.15375142,1806.8,1806.3,7.46870323]
[1745689240737,10.15375142,1806.8,1806.4,5.53574262]
[1745689240933,4.619,1806.8,1806.5,5.53555883]
[1745689241328,4.619,1806.8,1806.5,6.29825883]
[1745689241919,4.619,1806.8,1806.5,11.83358796]
[1745689242119,4.619,1806.8,1806.5,12.50976804]
[1745689242360,4.619,1806.8,1806.5,0.7627]
[1745689242933,5.53450671,1806.9,1806.5,0.7627]
[1745689243159,5.53450671,1806.9,1806.5,6.29826233]
[1745689243160,4.619,1806.8,1806.5,6.29826233]
[1745689243521,4.619,1806.8,1806.6,0.25366411]
[1745689246758,11.93084818,1806.8,1806.6,0.25366411]
[1745689247130,11.93084818,1806.8,1806.4,0.7951]
[1745689247328,17.4657669,1806.8,1806.5,0.25366411]
[1745689247535,11.93084818,1806.8,1806.5,0.25366411]
[1745689247947,5.3807,1806.8,1806.5,5.7892155]
[1745689248723,5.3807,1806.8,1806.5,0.25366411]
[1745689248923,10.91541867,1806.8,1806.5,0.25366411]
[1745689249956,4.619,1806.8,1806.5,0.25366411]
[1745689250164,4.619,1806.8,1806.5,5.78898226]
[1745689250360,4.619,1806.8,1806.6,5.53519869]
[1745689250866,4.619,1806.8,1806.7,0.25607128]
[1745689251163,4.619,1806.8,1806.6,5.53519869]
[1745689251365,4.619,1806.8,1806.7,0.25607128]
[1745689251565,4.619,1806.8,1806.6,5.53519869]
[1745689251766,4.619,1806.8,1806.7,0.25607128]
[1745689251953,4.619,1806.8,1806.5,5.53537781]
[1745689252152,4.619,1806.8,1806.6,0.25607128]
[1745689252964,4.619,1806.8,1806.7,0.7951]
[1745689253129,4.619,1806.8,1806.7,6.32986795]
[1745689253329,4.619,1806.8,1806.7,6.58593923]
[1745689253532,4.619,1806.8,1806.7,1.05117128]
[1745689254870,4.619,1806.8,1806.7,6.5861245]
[1745689255372,4.619,1806.8,1806.7,7.7982432]
[1745689262268,4.619,1806.8,1806.7,5.7910245]
[1745689266689,4.619,1806.8,1806.7,0.25607128]
[1745689267041,4.619,1806.8,1806.6,6.33688484]
[1745689267289,4.619,1806.8,1806.7,0.25472078]
[1745689267584,4.619,1806.8,1806.6,6.33688484]
[1745689267883,4.619,1806.8,1806.7,0.25472078]
[1745689268176,4.619,1806.8,1806.6,6.33688484]
[1745689268350,4.619,1806.8,1806.7,0.25472078]
[1745689268538,4.619,1806.8,1806.6,6.33688484]
[1745689268741,4.619,1806.8,1806.7,0.25472078]
[1745689268938,4.619,1806.8,1806.6,6.33688484]
[1745689269164,4.619,1806.8,1806.7,0.25472078]
[1745689269372,4.619,1806.8,1806.7,5.53495322]
[1745689269561,4.619,1806.8,1806.7,5.789674]
[1745689271077,4.619,1806.9,1806.8,6.31434181]
[1745689271377,4.619,1806.9,1806.8,7.85577704]
[1745689271747,4.619,1806.9,1806.8,0.25383984]
[1745689273975,4.619,1806.9,1806.8,6.56848672]
[1745689274179,6.11,1807.3,1806.9,5.53410277]
[1745689274393,4.619,1807.6,1807.5,5.53220377]
[1745689274540,29.04312705,1808.1,1807.7,0.78]
[1745689274541,4.719,1807.9,1807.7,0.78]
[1745689274741,4.719,1807.9,1807.8,5.78331189]
[1745689275504,4.719,1807.9,1807.8,0.25172654]
[1745689275841,4.719,1807.9,1807.5,6.31235661]
[1745689276045,11.35379878,1807.9,1807.8,0.25160916]
[1745689276355,5.53160648,1807.8,1807.5,0.78]
[1745689276562,11.35379878,1807.9,1807.4,5.5325939]
[1745689276772,11.35379878,1807.9,1807.6,0.24838221]
[1745689276972,11.35379878,1807.9,1807.4,5.5325939]
[1745689277476,11.35379878,1807.9,1807.5,0.24838221]
[1745689278474,16.88536149,1807.9,1807.5,0.24838221]
[1745689279394,5.53159113,1807.8,1807.5,0.24838221]
[1745689279606,6.34289738,1807.6,1807.5,0.24838221]
[1745689279888,6.34381569,1807.3,1807.2,0.01103418]
[1745689280047,5.53361703,1807.2,1806.8,0.01103418]
[1745689280251,5.53361703,1807.2,1806.8,0.64338108]
[1745689280252,11.06730621,1807.2,1806.8,0.64338108]
[1745689280449,11.06730621,1807.2,1806.9,0.24926209]
[1745689280450,5.53361703,1807.2,1806.9,0.24926209]
[1745689280755,5.53342186,1807.2,1806.9,0.24926209]
[1745689280951,5.53342186,1807.2,1806.8,6.17797871]
[1745689281556,5.53342186,1807.2,1806.9,0.24926209]
[1745689281967,5.53342186,1807.2,1807.0,0.24926209]
[1745689282253,5.53342186,1807.2,1806.8,6.17797871]
[1745689282453,5.53342186,1807.2,1807.1,0.24926209]
[1745689282652,5.53342186,1807.2,1806.8,5.54563181]
[1745689282853,5.53342186,1807.2,1807.1,0.24926209]
[1745689283069,5.52238768,1807.2,1806.8,5.53459763]
[1745689283272,5.52238768,1807.2,1807.1,0.24926209]
[1745689283470,5.52238768,1807.2,1806.8,6.16581739]
[1745689283704,5.52238768,1807.2,1807.1,0.24926209]
[1745689283897,5.52238768,1807.2,1806.8,5.53459763]
[1745689284207,5.52238768,1807.2,1807.1,0.24926209]
[1745689284661,5.52238768,1807.2,1806.8,5.53459763]
[1745689284862,5.52238768,1807.2,1807.1,0.24720751]
[1745689285103,5.52238768,1807.2,1806.8,5.53459763]
[1745689285305,5.52238768,1807.2,1807.1,0.24720751]
[1745689285504,5.52238768,1807.2,1806.8,5.53459763]
[1745689285659,5.52238768,1807.2,1807.1,0.24720751]
[1745689285859,5.52238768,1807.2,1806.8,5.53459763]
[1745689286100,5.52238768,1807.2,1807.1,0.24720751]
[1745689286297,5.52238768,1807.2,1806.8,5.53459763]